bitfinex-derivatives/quotes_SOLF0:USTF0_20241224
["timestamp","ask_amount","ask_price","bid_price","bid_amount"]
[1735025087241,2.6172,191.32,191.26,8.44545966]
[1735025087648,4.1401,191.33,191.26,8.44545966]
[1735025087944,8.44545966,191.29,191.21,8.44545966]
[1735025088140,2.6183,191.24,191.19,3.24]
[1735025088447,13.15149507,191.29,191.19,3.24]
[1735025089040,2.6183,191.24,191.19,3.24]
[1735025089244,13.15149507,191.29,191.19,3.24]
[1735025090646,2.6185,191.23,191.19,3.24]
[1735025091247,2.6185,191.23,191.16,13.15149507]
[1735025091738,13.15149507,191.29,191.15,19.01089507]
[1735025091944,2.6185,191.22,191.15,19.01089507]
[1735025092338,13.15149507,191.29,191.15,13.15149507]
[1735025092542,13.15149507,191.26,191.15,16.39149507]
[1735025092846,1.5124,191.25,191.15,16.39149507]
[1735025094654,2.6188,191.21,191.15,16.39149507]
[1735025095950,1.5124,191.25,191.15,16.39149507]
[1735025095951,2.6189,191.2,191.15,16.39149507]
[1735025096151,1.5124,191.25,191.15,16.39149507]
[1735025096451,1.5124,191.25,191.12,13.15149507]
[1735025096652,2.6191,191.18,191.12,13.15149507]
[1735025099745,2.6194,191.16,191.12,13.15149507]
[1735025100255,1.5058,191.23,191.12,13.15149507]
[1735025101153,2.6192,191.18,191.12,13.15149507]
[1735025102155,1.5058,191.23,191.12,13.15149507]
[1735025102448,2.6193,191.17,191.12,13.15149507]
[1735025104567,2.6193,191.17,191.12,15.77129507]
[1735025106157,2.6191,191.19,191.13,2.6196]
[1735025107792,2.6191,191.19,191.12,13.15149507]
[1735025108633,2.6191,191.19,191.14,2.6196]
[1735025108911,2.6191,191.18,191.12,13.15149507]
[1735025109196,13.15149507,191.24,191.13,2.6197]
[1735025109387,2.6192,191.17,191.12,13.15149507]
[1735025110189,2.6192,191.17,191.14,8.42075102]
[1735025112700,2.6194,191.16,191.11,14.28065102]
[1735025113704,2.6189,191.2,191.13,11.04045102]
[1735025113891,8.42075102,191.21,191.13,11.04045102]
[1735025114214,9.93315102,191.25,191.17,8.42075102]
[1735025114789,1.5124,191.25,191.17,8.42075102]
[1735025114992,9.93315102,191.25,191.17,8.42075102]
[1735025115540,2.6186,191.22,191.17,11.03995102]
[1735025115694,8.42075102,191.23,191.16,3.24]
[1735025115956,8.42075102,191.21,191.15,8.42075102]
[1735025116391,2.6189,191.2,191.15,8.42075102]
[1735025116827,2.6191,191.19,191.13,11.04035102]
[1735025117211,8.42075102,191.21,191.13,8.42075102]
[1735025117998,2.6189,191.2,191.14,2.6196]
[1735025118603,2.619,191.19,191.14,2.6196]
[1735025118903,8.42075102,191.21,191.13,8.42075102]
[1735025119404,2.6192,191.18,191.13,8.42075102]
[1735025119596,8.42075102,191.19,191.13,11.04045102]
[1735025120297,2.6191,191.18,191.13,11.04045102]
[1735025121001,2.6191,191.18,191.13,8.42075102]
[1735025121886,2.6191,191.18,191.13,11.04055102]
[1735025122290,2.6191,191.18,191.13,8.42075102]
[1735025122494,3.1098,191.22,191.06,3.24]
[1735025122495,8.42075102,191.14,191.06,3.24]
[1735025122706,8.42075102,191.14,191.04,3.24]
[1735025122892,2.62,191.11,191.06,2.6207]
[1735025123678,2.62,191.11,191.06,8.42075102]
[1735025125170,2.62,191.11,191.06,11.04145102]
[1735025125776,2.6202,191.1,191.06,8.42075102]
[1735025126876,8.42075102,191.08,190.94,57.77027956]
[1735025127083,8.42075102,191.08,191.01,8.42075102]
[1735025127474,8.42075102,191.06,190.95,4.7028]
[1735025127677,8.42075102,191.06,190.99,8.42075102]
[1735025128383,2.6204,191.09,190.99,8.42075102]
[1735025128583,8.42075102,191.06,190.99,8.42075102]
[1735025128973,2.621,191.04,190.99,8.42075102]
[1735025129179,8.42075102,191.07,190.99,11.04245102]
[1735025129581,2.6209,191.05,190.99,8.42075102]
[1735025129879,8.42075102,191.07,190.99,8.42075102]
[1735025130285,2.621,191.04,190.97,13.17719975]
[1735025131489,2.621,191.04,190.98,2.6218]
[1735025132981,3.24,191.08,190.97,13.17719975]
[1735025133182,3.24,191.08,190.95,4.8338]
[1735025133485,2.6214,191.01,190.95,7.456]
[1735025135586,2.6216,191.0,190.94,97.46535537]
[1735025135777,13.17719975,191.04,190.94,84.28815562]
[1735025135985,13.17719975,191.04,190.93,2.6224]
[1735025136282,6.3774,191.03,190.93,2.6224]
[1735025136486,2.6218,190.99,190.93,2.6224]
[1735025137591,2.6218,190.98,190.93,2.6224]
[1735025139588,2.6218,190.98,190.91,13.17719975]
[1735025139895,2.6218,190.98,190.92,2.6226]
[1735025140289,2.6216,191.0,190.94,2.6224]
[1735025141894,2.6213,191.02,190.95,2.6221]
[1735025143291,2.6213,191.02,190.94,13.17719975]
[1735025143292,2.6211,191.04,190.98,2.6217]
[1735025144396,2.6213,191.02,190.96,2.622]
[1735025149697,13.17719975,191.07,190.94,14.71049975]
[1735025149997,2.6215,191.01,190.95,2.6222]
[1735025150591,2.6215,191.01,190.96,2.6221]
[1735025152287,2.6215,191.01,190.96,11.05892656]
[1735025153594,1.4924,191.09,190.98,8.43682656]
[1735025153793,2.621,191.05,191.0,2.6215]
[1735025157497,2.6207,191.07,191.01,11.05812656]
[1735025160602,2.6207,191.06,191.01,11.05812656]
[1735025161302,2.6207,191.06,191.02,2.6212]
[1735025161697,8.43682656,191.09,191.03,8.43682656]
[1735025161895,1.5257,191.14,191.03,8.43682656]
[1735025162101,8.43682656,191.13,191.05,11.05762656]
[1735025162503,2.6201,191.11,191.06,2.6206]
[1735025163602,8.43682656,191.13,191.06,2.6206]
[1735025163803,2.6199,191.12,191.06,2.6206]
[1735025164605,8.43682656,191.13,191.06,2.6206]
[1735025164800,8.43682656,191.09,191.04,2.6209]
[1735025165101,8.43682656,191.07,191.01,8.43682656]
[1735025165299,2.6208,191.06,191.01,8.43682656]
[1735025165501,2.6208,191.06,191.0,8.43682656]
[1735025166100,3.24,191.1,191.0,8.43682656]
[1735025166301,3.24,191.1,190.99,3.24]
[1735025166302,11.67682656,191.1,190.99,3.24]
[1735025166502,11.67682656,191.1,191.02,8.43682656]
[1735025166699,2.6206,191.08,191.02,11.05812656]
[1735025167402,8.43682656,191.09,191.02,11.05812656]
[1735025167608,2.6206,191.07,191.02,11.05812656]
[1735025169707,11.05722656,191.09,191.03,2.621]
[1735025170008,8.43682656,191.09,191.02,8.43682656]
[1735025170413,2.6207,191.07,191.02,8.43682656]
[1735025170806,8.43682656,191.09,190.95,1.5683]
[1735025171011,3.24,191.1,190.95,1.5683]
[1735025171012,8.43682656,191.03,190.95,1.5683]
[1735025171230,8.43682656,191.03,190.95,10.00512656]
[1735025172614,8.43682656,191.01,190.93,8.43682656]
[1735025173411,2.6217,190.99,190.93,11.05932656]
[1735025177417,1.5549,191.04,190.93,8.43682656]
[1735025177618,8.43682656,191.01,190.93,8.43682656]
[1735025178214,2.6217,190.99,190.93,11.05932656]
[1735025180111,2.6217,190.99,190.93,2.6225]
[1735025180311,2.6222,190.96,190.92,8.43682656]
[1735025182519,2.622,190.98,190.92,11.05942656]
[1735025183422,2.622,190.98,190.94,8.43682656]
[1735025192831,2.622,190.98,190.93,2.6225]
[1735025193025,2.622,190.98,190.93,11.05932656]
[1735025197435,11.05882656,190.98,190.93,2.6225]
[1735025199433,8.43682656,190.98,190.89,3.24]
[1735025199633,11.05892656,190.96,190.91,2.6227]
[1735025199832,8.43682656,190.94,190.87,8.43682656]
[1735025200633,2.6225,190.93,190.87,11.06002656]
[1735025201132,3.24,190.97,190.81,1.5671]
[1735025201133,8.43682656,190.92,190.81,1.5671]
[1735025201335,8.43682656,190.92,190.85,8.43682656]
[1735025201837,2.623,190.9,190.85,8.43682656]
[1735025203038,2.6228,190.92,190.87,11.06012656]
[1735025203643,8.43682656,190.97,190.91,8.43682656]
[1735025203838,8.43682656,190.99,190.91,8.43682656]
[1735025204142,2.6219,190.98,190.92,2.6226]
[1735025204339,28.54901461,191.0,190.88,3.24]
[1735025204542,36.98584117,191.0,190.93,8.43682656]
[1735025204743,2.6215,191.0,190.95,11.05902656]
[1735025205230,8.43682656,191.02,190.97,11.05872656]
[1735025205431,7.13725365,191.07,190.97,11.05872656]
[1735025205432,3.24,191.07,190.97,8.43682656]
[1735025205632,8.43682656,191.05,190.97,8.43682656]
[1735025206440,2.6208,191.06,190.99,8.43682656]
[1735025207240,1.26706851,191.09,191.03,8.43682656]
[1735025207444,8.43682656,191.1,191.03,8.43682656]
[1735025207844,8.43682656,191.1,191.05,2.6208]
[1735025208243,8.43682656,191.12,191.05,11.05762656]
[1735025208644,8.43682656,191.12,191.05,8.43682656]
[1735025208842,8.43682656,191.12,190.99,1.5469]
[1735025208843,8.43682656,191.1,191.03,8.43682656]
[1735025209043,8.43682656,191.08,190.99,1.5469]
[1735025209237,8.43682656,191.06,190.99,8.43682656]
[1735025209642,11.05782656,191.04,190.98,3.24]
[1735025209848,8.43682656,191.04,190.98,3.24]
[1735025210247,2.6212,191.03,190.97,8.43682656]
[1735025210445,8.43682656,191.04,190.97,8.43682656]
[1735025210745,2.6216,191.0,190.95,3.24]
[1735025212247,2.6214,191.02,190.95,3.24]
[1735025213447,2.6214,191.02,190.96,2.6221]
[1735025214048,3.24,191.04,190.98,2.6218]
[1735025214248,3.24,191.04,190.95,3.24]
[1735025214443,13.18454285,191.07,190.95,3.24]
[1735025215449,2.6209,191.05,190.99,2.6217]
[1735025215651,2.6209,191.05,190.95,3.24]
[1735025216148,2.6209,191.05,190.99,2.6217]
[1735025216349,16.42454285,191.08,190.95,3.24]
[1735025216350,2.6207,191.07,190.95,3.24]
[1735025216543,2.6207,191.07,190.97,13.18454285]
[1735025216940,2.6207,191.07,191.01,2.6214]
[1735025218249,2.6205,191.08,191.02,2.6212]
[1735025219347,16.42454285,191.11,190.97,13.18454285]
[1735025219549,4.665,191.14,191.0,13.18454285]
[1735025219742,4.665,191.14,191.01,3.24]
[1735025220147,2.6202,191.1,191.04,2.621]
[1735025220744,2.6203,191.09,191.02,2.6211]
[1735025222350,2.6205,191.08,191.02,2.6211]
[1735025226751,2.6205,191.08,191.03,2.621]
[1735025231658,2.6205,191.08,191.0,13.18454285]
[1735025231864,2.6205,191.08,191.02,2.6213]
[1735025232257,11.05245327,191.08,191.02,2.6213]
[1735025233468,2.6206,191.07,191.02,2.6213]
[1735025237054,2.6208,191.06,191.01,2.6214]
[1735025237267,11.05275327,191.06,191.01,2.6214]
[1735025237458,8.43195327,191.09,191.01,8.43195327]
[1735025237656,2.6203,191.09,191.05,2.6208]
[1735025238060,2.6202,191.1,191.05,2.6208]
[1735025244065,2.6206,191.08,191.03,11.05295327]
[1735025244672,11.05195327,191.11,191.06,2.6207]
[1735025246870,8.43195327,191.11,191.03,8.43195327]
[1735025247071,2.6202,191.1,191.05,2.6208]
[1735025248871,2.6202,191.1,191.05,11.05275327]
[1735025252572,8.43195327,191.09,190.97,3.24]
[1735025252770,8.43195327,191.09,191.02,8.43195327]
[1735025253375,2.6208,191.06,191.02,8.43195327]
[1735025253873,2.621,191.05,191.0,2.6215]
[1735025254065,8.43195327,191.07,191.0,8.43195327]
[1735025254465,2.6213,191.02,190.98,11.05375327]
[1735025256070,8.43195327,191.03,190.96,8.43195327]
[1735025256272,8.43195327,191.03,190.95,84.28500376]
[1735025256475,8.43195327,191.03,190.95,92.71695703]
[1735025256676,8.43195327,191.01,190.95,92.71695703]
[1735025256976,8.43195327,190.99,190.93,8.43195327]
[1735025257171,8.43195327,190.97,190.9,70.28330349]
[1735025257577,8.43195327,190.95,190.89,8.43195327]
[1735025258472,2.6226,190.93,190.89,8.43195327]
[1735025258669,8.43195327,190.95,190.89,8.43195327]
[1735025258866,3.24,190.98,190.93,8.43195327]
[1735025259072,8.43195327,191.01,190.93,8.43195327]
[1735025259968,3.24,191.02,190.93,11.05445327]
[1735025259969,2.6217,191.0,190.93,11.05445327]
[1735025260271,11.05365327,191.0,190.93,11.05445327]
[1735025262374,2.6217,190.99,190.93,11.05445327]
[1735025266382,3.24,191.03,190.97,8.43195327]
[1735025266383,2.6212,191.03,190.97,8.43195327]
[1735025269685,8.43195327,191.04,190.97,8.43195327]
[1735025269885,2.6213,191.02,190.97,8.43195327]
[1735025270891,11.05305327,191.04,190.97,11.05385327]
[1735025271186,4.6806,191.07,191.01,8.43195327]
[1735025271386,8.43195327,191.09,191.01,8.43195327]
[1735025272492,2.6206,191.07,191.02,2.6213]
[1735025273892,2.6206,191.07,191.01,8.43195327]
[1735025274091,2.6206,191.07,191.01,11.05335327]
[1735025276491,2.6206,191.07,191.01,2.6214]
[1735025276896,2.6206,191.07,191.01,11.05335327]
[1735025277293,2.6207,191.06,191.01,11.05335327]
[1735025277792,2.6207,191.06,191.01,2.6214]
[1735025277989,2.6207,191.06,191.01,11.05335327]
[1735025284103,2.6207,191.06,191.02,2.6213]
[1735025290310,2.621,191.04,191.0,2.6215]
[1735025290611,8.43195327,191.05,190.98,8.43195327]
[1735025291011,2.6211,191.03,190.99,2.6216]
[1735025294307,2.6213,191.02,190.98,2.6218]
[1735025294513,8.43195327,191.05,190.98,2.6218]
[1735025295012,2.6212,191.03,190.98,2.6218]
[1735025299416,8.43195327,191.05,190.97,8.43195327]
[1735025299616,8.43195327,191.03,190.97,8.43195327]
[1735025299815,8.43195327,191.03,190.95,8.43195327]
[1735025300014,8.43195327,191.01,190.95,8.43195327]
[1735025300215,2.6217,190.99,190.94,83.94189935]
[1735025307217,2.6213,191.02,190.97,2.6219]
[1735025307423,2.6213,191.02,190.97,11.05385327]
[1735025307616,8.43195327,191.02,190.94,81.31949935]
[1735025307924,8.43195327,191.0,190.94,89.75145262]
[1735025308323,2.6217,190.99,190.94,92.37385262]
[1735025308522,8.43195327,191.0,190.94,89.75145262]
[1735025309724,8.43195327,191.0,190.94,8.43195327]
[1735025310025,8.43195327,191.01,190.9,3.24]
[1735025310529,2.6216,191.0,190.95,2.6222]
[1735025310925,8.43195327,191.01,190.94,8.43195327]
[1735025311127,8.43195327,191.03,190.96,8.43195327]
[1735025312430,2.6214,191.02,190.97,2.622]
[1735025315235,1.4921,191.05,190.97,2.622]
[1735025315533,2.6212,191.03,190.97,2.622]
[1735025315836,11.05295327,191.05,190.99,2.6217]
[1735025316034,2.621,191.05,190.99,2.6217]
[1735025316228,2.621,191.05,191.0,8.43195327]
[1735025316423,8.43195327,191.07,191.0,8.43195327]
[1735025316424,11.05265327,191.07,191.0,8.43195327]
[1735025317334,11.05265327,191.07,191.01,2.6214]
[1735025320028,2.6208,191.06,191.0,2.6215]
[1735025320232,2.6208,191.06,191.0,11.05345327]
[1735025321631,2.6209,191.05,191.0,11.05345327]
[1735025323034,4.7157,191.12,191.04,8.43195327]
[1735025323224,1.6289,191.12,191.06,8.43195327]
[1735025323626,4.2488,191.12,191.07,2.6205]
[1735025323831,2.6199,191.12,191.07,2.6205]
[1735025325734,2.6197,191.14,191.09,2.6203]
[1735025326134,8.43195327,191.17,191.1,8.43195327]
[1735025326338,8.43195327,191.17,191.11,2.62]
[1735025330339,11.05135327,191.17,191.11,2.62]
[1735025330938,2.6194,191.16,191.11,2.62]
[1735025333140,2.6195,191.15,191.1,8.43195327]
[1735025333940,11.05125327,191.17,191.1,11.05205327]
[1735025334740,2.6194,191.16,191.1,11.05205327]
[1735025336146,8.43195327,191.13,191.05,7.9255]
[1735025336347,8.43195327,191.13,191.06,8.43195327]
[1735025336744,2.6201,191.11,191.06,8.43195327]
[1735025336937,8.43195327,191.11,191.05,5.7137]
[1735025337843,2.6203,191.1,191.05,5.7137]
[1735025338040,8.43195327,191.11,191.05,3.0929]
[1735025338247,8.43195327,191.09,191.02,8.43195327]
[1735025338848,8.43195327,191.09,191.04,2.621]
[1735025339248,8.43195327,191.09,191.02,8.43195327]
[1735025339449,2.6206,191.08,191.03,2.6211]
[1735025345652,2.6206,191.08,191.04,2.621]
[1735025346050,8.43195327,191.09,191.0,3.22]
[1735025346246,8.43195327,191.07,190.98,4.6297]
[1735025346450,8.43195327,191.05,190.97,83.43705998]
[1735025346760,2.6213,191.02,190.98,11.05375327]
[1735025348861,3.22,191.11,190.98,8.43195327]
[1735025349063,8.43195327,191.05,191.0,2.6214]
[1735025350459,8.43195327,191.05,190.98,11.05365327]
[1735025351457,2.6212,191.03,190.98,11.05365327]
[1735025353762,2.6212,191.03,190.99,2.6217]
[1735025354260,10.31965365,191.14,190.97,80.21705998]
[1735025354261,10.31965365,191.14,191.0,8.43195327]
[1735025354564,2.621,191.05,191.01,2.6214]
[1735025356658,8.43195327,191.05,190.97,80.21705998]
[1735025356864,8.43195327,191.03,190.96,8.43195327]
[1735025357068,8.43195327,191.03,190.98,8.43195327]
[1735025358271,8.43195327,191.09,191.02,8.43195327]
[1735025359464,8.43195327,191.09,191.04,2.621]
[1735025359670,8.43195327,191.09,191.02,8.43195327]
[1735025360467,8.43195327,191.09,191.05,2.6208]
[1735025363072,8.43195327,191.09,191.03,2.621]
[1735025363073,11.05225327,191.09,191.03,2.621]
[1735025363276,8.43195327,191.09,191.03,2.621]
[1735025364574,2.6205,191.08,191.03,2.621]
[1735025364769,11.05245327,191.08,191.03,2.621]
[1735025364965,8.43195327,191.08,191.02,8.43195327]
[1735025365172,2.6206,191.07,191.02,11.05325327]
[1735025367973,8.43195327,191.08,191.02,8.43195327]
[1735025368174,2.6207,191.06,191.02,8.43195327]
[1735025368978,8.43195327,191.08,191.0,8.43195327]
[1735025369173,2.621,191.05,191.0,8.43195327]
[1735025369672,2.621,191.05,191.0,11.05345327]
[1735025370977,2.621,191.04,191.0,11.05345327]
[1735025371175,2.621,191.04,191.0,8.43195327]
[1735025371374,2.621,191.04,191.01,2.6214]
[1735025377181,2.6209,191.05,191.01,2.6214]
[1735025385488,2.6211,191.04,191.0,2.6215]
[1735025385792,2.6211,191.04,190.98,8.43195327]
[1735025386190,11.05305327,191.04,190.98,8.43195327]
[1735025386492,11.05305327,191.04,190.99,2.6216]
[1735025392295,11.05305327,191.04,191.0,2.6215]
[1735025398202,2.6211,191.04,191.0,2.6215]
[1735025401501,8.43195327,191.05,190.95,3.22]
[1735025401695,3.1657,191.07,190.95,3.22]
[1735025401696,11.05315327,191.03,190.98,2.6218]
[1735025402798,8.43195327,190.99,190.96,2.622]
[1735025404602,10.30295365,191.07,190.95,8.43195327]
[1735025404797,8.43195327,191.03,190.99,2.6217]
[1735025405003,11.05315327,191.03,190.99,2.6217]
[1735025405203,11.05315327,191.03,190.98,2.6218]
[1735025405594,2.6209,191.05,190.97,8.43195327]
[1735025405796,3.1657,191.07,191.02,2.6213]
[1735025405996,8.43195327,191.06,191.02,2.6213]
[1735025407304,4.1396,191.08,191.01,8.43195327]
[1735025407507,3.1052,191.11,191.03,8.43195327]
[1735025407805,28.54901461,191.13,191.07,8.43195327]
[1735025408005,28.54901461,191.13,191.01,3.22]
[1735025408203,28.54901461,191.13,191.07,8.43195327]
[1735025408404,12.67535327,191.14,191.07,8.43195327]
[1735025408907,4.2434,191.14,191.07,8.43195327]
[1735025409104,8.43195327,191.15,191.09,2.6203]
[1735025409398,8.43195327,191.15,191.07,8.43195327]
[1735025409592,8.43195327,191.15,191.1,2.6202]
[1735025409799,8.43195327,191.15,191.07,8.43195327]
[1735025410101,8.43195327,191.13,191.07,8.43195327]
[1735025411507,8.43195327,191.13,191.06,3.22]
[1735025411799,8.43195327,191.09,191.04,8.43195327]
[1735025412006,8.43195327,191.09,191.02,4.735]
[1735025412007,8.43195327,191.09,191.02,8.43195327]
[1735025412303,8.43195327,191.07,191.0,3.22]
[1735025412503,8.43195327,191.07,191.01,2.6214]
[1735025412901,11.05265327,191.07,191.01,2.6214]
[1735025414004,8.43195327,191.05,191.0,3.22]
[1735025414209,8.43195327,191.05,190.97,8.43195327]
[1735025414396,3.22,191.08,190.95,3.22]
[1735025414397,8.43195327,191.01,190.95,3.22]
[1735025414596,8.43195327,191.01,190.95,5.8422]
[1735025415404,2.6216,191.0,190.95,5.8422]
[1735025415600,8.43195327,191.01,190.95,3.22]
[1735025415902,3.0394,191.07,190.97,8.43195327]
[1735025416106,8.43195327,191.04,190.97,8.43195327]
[1735025416504,8.43195327,191.04,191.01,2.6213]
[1735025416706,5.6601,191.07,190.99,8.43195327]
[1735025416899,8.43195327,191.06,190.99,8.43195327]
[1735025417209,8.43195327,191.06,191.01,2.6214]
[1735025417610,8.43195327,191.06,190.99,8.43195327]
[1735025417905,5.6601,191.07,191.01,2.6214]
[1735025418208,14.09205327,191.07,191.01,2.6214]
[1735025419308,14.09205327,191.07,191.02,2.6213]
[1735025419808,8.43195327,191.05,191.01,2.6214]
[1735025420008,8.43195327,191.05,190.97,8.43195327]
[1735025420204,8.43195327,191.03,190.97,8.43195327]
[1735025420406,2.6213,191.02,190.98,2.6218]
[1735025420606,8.43195327,191.03,190.98,2.6218]
[1735025420805,2.6213,191.02,190.96,8.43195327]
[1735025421216,8.43195327,191.03,190.96,8.43195327]
[1735025421412,11.05295327,191.05,190.98,8.43195327]
[1735025421808,8.43195327,191.05,190.98,8.43195327]
[1735025423411,8.43195327,191.05,191.01,2.6214]
[1735025429117,3.0394,191.07,190.98,8.43195327]
[1735025429318,11.47135327,191.07,191.03,2.6211]
[1735025430620,11.05225327,191.09,191.04,2.621]
[1735025431025,11.05205327,191.11,191.05,2.6208]
[1735025431617,8.43195327,191.11,191.05,2.6208]
[1735025431917,8.43195327,191.09,191.05,2.6208]
[1735025435424,2.6202,191.1,191.02,8.43195327]
[1735025435623,12.65705327,191.12,191.04,8.43195327]
[1735025435822,12.65705327,191.12,191.04,11.65195327]
[1735025436428,4.2251,191.12,191.08,2.6204]
[1735025436628,8.43195327,191.11,191.08,2.6204]
[1735025437227,8.43195327,191.11,191.04,11.65195327]
[1735025437228,8.43195327,191.11,191.09,2.6203]
[1735025437629,8.43195327,191.13,191.09,2.6203]
[1735025438134,1.478,191.15,191.08,8.43195327]
[1735025438428,8.43195327,191.15,191.08,8.43195327]
[1735025439426,8.43195327,191.15,191.12,2.6199]
[1735025439830,1.6204,191.2,191.14,8.43195327]
[1735025440029,8.43195327,191.21,191.14,8.43195327]
[1735025440227,1.633,191.22,191.12,3.22]
[1735025440530,8.43195327,191.19,191.12,11.65195327]
[1735025440834,8.43195327,191.17,191.12,3.22]
[1735025441335,8.43195327,191.15,191.08,11.65195327]
[1735025442129,8.43195327,191.17,191.1,8.43195327]
[1735025442634,11.05115327,191.17,191.1,8.43195327]
[1735025442932,8.43195327,191.17,191.1,8.43195327]
[1735025443133,8.43195327,191.17,191.14,2.6196]
[1735025443333,8.43195327,191.19,191.12,8.43195327]
[1735025443631,8.43195327,191.21,191.16,2.6193]
[1735025444732,8.43195327,191.21,191.12,8.43195327]
[1735025444733,8.43195327,191.19,191.14,2.6196]
[1735025444935,4.853,191.22,191.12,8.43195327]
[1735025445238,8.43195327,191.19,191.12,8.43195327]
[1735025445534,1.633,191.22,191.12,8.43195327]
[1735025445738,8.43195327,191.2,191.12,8.43195327]
[1735025446036,8.43195327,191.2,191.13,3.2]
[1735025446329,8.43195327,191.2,191.17,2.6192]
[1735025447133,8.43195327,191.2,191.15,2.6194]
[1735025447332,12.68365327,191.22,191.14,8.43195327]
[1735025447536,10.06495327,191.22,191.14,8.43195327]
[1735025447832,10.06495327,191.22,191.18,2.619]
[1735025448135,10.06495327,191.22,191.14,8.43195327]
[1735025448534,8.43195327,191.22,191.16,2.6193]
[1735025448738,8.43195327,191.22,191.14,8.43195327]
[1735025449635,8.43195327,191.22,191.18,2.619]
[1735025449835,8.43195327,191.22,191.14,8.43195327]
[1735025450336,11.05055327,191.22,191.17,2.6191]
[1735025450535,7.13725365,191.32,191.18,8.43195327]
[1735025450739,2.32992786,191.31,191.2,8.43195327]
[1735025450925,8.43195327,191.28,191.2,8.43195327]
[1735025451333,1.5452,191.31,191.22,8.43195327]
[1735025451627,8.43195327,191.29,191.24,2.6182]
[1735025451937,1.5452,191.31,191.24,2.6182]
[1735025451938,3.115,191.32,191.24,8.43195327]
[1735025452136,8.43195327,191.34,191.28,8.43195327]
[1735025453333,8.43195327,191.35,191.3,2.6174]
[1735025453534,8.43195327,191.35,191.27,8.43195327]
[1735025454032,1.6347,191.39,191.27,8.43195327]
[1735025454033,8.43195327,191.33,191.28,2.6177]
[1735025454331,13.13940595,191.36,191.28,2.6177]
[1735025454734,2.6169,191.35,191.28,2.6177]
[1735025456032,1.6347,191.39,191.24,3.2]
[1735025456235,13.13940595,191.33,191.24,3.2]
[1735025456631,13.13940595,191.33,191.2,13.13940595]
[1735025456837,3.2,191.34,191.19,4.8342]
[1735025456838,13.13940595,191.3,191.19,4.8342]
[1735025457036,1.4999,191.29,191.19,4.8342]
[1735025457236,1.4999,191.29,191.24,2.6182]
[1735025458035,1.4999,191.29,191.26,2.6179]
[1735025458337,3.1027,191.32,191.2,13.13940595]
[1735025458533,3.1027,191.32,191.2,16.28830595]
[1735025459135,5.7199,191.32,191.26,2.6179]
[1735025459333,3.1027,191.32,191.24,3.2]
[1735025459734,5.7199,191.32,191.27,2.6178]
[1735025459933,3.1027,191.32,191.27,2.6178]
[1735025460138,16.33940595,191.38,191.24,3.2]
[1735025460434,3.0428,191.37,191.24,3.2]
[1735025461030,2.6169,191.34,191.28,2.6177]
[1735025463646,2.6171,191.33,191.26,2.6179]
[1735025464140,2.6171,191.33,191.27,2.6177]
[1735025467944,2.6172,191.32,191.27,2.6177]
[1735025469239,1.6183,191.34,191.23,3.36]
[1735025469441,4.2353,191.34,191.28,2.6177]
[1735025471041,2.617,191.33,191.28,2.6177]
[1735025471646,4.2352,191.34,191.29,2.6176]
[1735025472945,1.6183,191.34,191.27,2.6177]
[1735025473137,13.13940595,191.33,191.22,3.36]
[1735025473736,13.13940595,191.3,191.19,1.6342]
[1735025473936,1.4805,191.29,191.17,16.49940595]
[1735025474148,13.13940595,191.27,191.17,3.36]
[1735025475049,13.13940595,191.27,191.15,3.36]
[1735025475443,2.6181,191.25,191.19,2.6188]
[1735025477343,13.13940595,191.27,191.19,2.6188]
[1735025477551,3.1178,191.29,191.11,1.5908]
[1735025477552,13.13940595,191.24,191.11,14.73020595]
[1735025477849,16.49940595,191.24,191.11,14.73020595]
[1735025478246,8.42207113,191.19,191.14,2.6196]
[1735025478841,8.42207113,191.19,191.12,8.42207113]
[1735025479044,8.42207113,191.19,191.1,8.42207113]
[1735025480146,8.42207113,191.19,191.06,3.1613]
[1735025480147,2.6189,191.2,191.12,2.6199]
[1735025480346,13.16029417,191.21,191.12,2.6199]
[1735025481144,2.6192,191.18,191.12,2.6199]
[1735025481350,2.6192,191.18,191.13,2.6198]
[1735025482249,2.619,191.19,191.14,2.6196]